Cogmind - Beta 11.1 @@@ ROGUE MODE // 2022.05.27 @ 10:00:16 Player: theq629 Result: Self-destructed Performance ------------- Evolutions (2) 1000 Regions Visited (3) 600 Robots Destroyed (39) 195 Value Destroyed (1038) 1038 Prototype IDs (0) 0 Alien Tech Used (0) 0 Bonus (0) 0 TOTAL SCORE: 2833 Bonus ------- None Cogmind --------- Core Integrity 475/550 Matter 260/300 Energy 192/240 System Corruption 3% Temperature Critical (594) Movement Treading (320) Ox2 Location -8/Materials Parts ------- > --- POWER (2) -------- Nuclear Core > --- PROPULSION (3) --- Light Treads > --- UTILITY (3) ------ High-capacity Storage Unit Signal Interpreter Improved Light Armor Plating > --- WEAPON (3) ------- Small Laser > --- INVENTORY (20) --- Ion Engine Light Ion Engine Light Ion Engine Nuclear Core Nuclear Core Flight Unit Flight Unit Improved Terrain Scanner Light Armor Plating Medium Armor Plating Beam Rifle Particle Cannon Ion Cannon Heavy Assault Rifle Advanced EMP Blaster Datajack Peak State ------------ > --- POWER ------------ Nuclear Core Nuclear Core > --- PROPULSION ------- Light Treads Improved Treads Improved Treads > --- UTILITY ---------- High-capacity Storage Unit Signal Interpreter Improved Light Armor Plating > --- WEAPON ----------- Small Laser Heavy Assault Rifle EMP Blaster > --- INVENTORY -------- Ion Engine Light Ion Engine Light Ion Engine Nuclear Core Nuclear Core Light Treads Flight Unit Flight Unit Improved Terrain Scanner Light Armor Plating Medium Armor Plating Small Laser Beam Rifle Particle Cannon Ion Cannon Advanced EMP Blaster Datajack [Rating: 24] Favorites ----------- Power Nuclear Core Engine Ion Engine Power Core Nuclear Core Propulsion Light Treads Treads Light Treads Leg Aluminum Leg Wheel Compact Wheel Flight Unit Flight Unit Utility Signal Interpreter Device Improved Terrain Scanner Storage Small Storage Unit Processor Signal Interpreter Protection Improved Light Armor Plating Weapon Small Laser Energy Gun Small Laser Energy Cannon Ion Cannon Ballistic Gun Heavy Assault Rifle Launcher EMP Blaster Build | -11 -10 -9 -8 ------- Run | Scr Mat Mat Mat Slots Evolved 4 | . . 2 2 Power 1 | . . 1 . Propulsion 1 | . . 1 . Utility 1 | . . . 1 Weapon 1 | . . . 1 Parts Attached 40 | 7 8 19 6 Power 6 | 1 2 3 . Engine 3 | 1 2 . . Core 3 | . . 3 . Reactor . | . . . . Propulsion 17 | 2 4 9 2 Treads 10 | . . 8 2 Leg 1 | . . 1 . Wheel 4 | 2 2 . . Hover . | . . . . Flight 2 | . 2 . . Utility 6 | 2 1 2 1 Device 2 | 1 1 . . Storage 2 | 1 . 1 . Processor 1 | . . 1 . Hackware . | . . . . Protection 1 | . . . 1 Artifact . | . . . . Weapon 11 | 2 1 5 3 Energy Gun 7 | 1 1 3 2 Energy Cannon 1 | . . 1 . Ballistic Gun 2 | 1 . 1 . Ballistic Cannon . | . . . . Launcher 1 | . . . 1 Special Weapon . | . . . . Impact Weapon . | . . . . Slashing Weapon . | . . . . Piercing Weapon . | . . . . Special Melee Weapon . | . . . . Unidentified Prototypes . | . . . . Parts Lost 13 | . 1 4 8 Power 3 | . . 2 1 Propulsion 3 | . . . 3 Utility 1 | . . 1 . Weapon 6 | . 1 1 4 Highest Loss Streak 6 | . 1 1 6 To Critical Strikes . | . . . . Average Slot Usage (%) 96 | . 97 95 98 Engine 7 | . 14 9 . Core 11 | . . 11 17 Treads 21 | . . 25 26 Wheel 6 | . 26 3 . Device 3 | . 13 1 . Storage 10 | . 14 11 9 Processor 7 | . . 8 9 Protection 2 | . . . 9 Energy Gun 10 | . 12 10 8 Ballistic Gun 10 | . 14 10 9 Launcher 2 | . . . 9 Naked Turns . | . . . . Heaviest Build 65 | 14 14 58 65 Greatest Support 66 | 32 32 66 66 Greatest Overweight (x) 1 | . . 1 . Average Overweight (x) . | . . . . Largest Inventory Capacity 20 | 8 8 20 20 Average Capacity 13 | 7 8 12 20 Most Carried 17 | 2 7 17 17 Average Carried 10 | 1 5 9 16 Final Capacity 20 | 8 8 20 20 Final Carried 16 | 2 7 16 16 Class Distribution -------------------- 60% | Mutant 26% | Tank 13% | Scavenger-Mutant Dominant Class ---------------- Mutant | -10/Materials Mutant | -9/Materials Tank | -8/Materials Resources | -11 -10 -9 -8 ----------- Run | Scr Mat Mat Mat Matter Collected 804 | 264 93 313 134 Remotely . | . . . . Salvage Created 1329 | 41 125 617 546 Parts 100 | 8 14 38 40 Haulers Intercepted . | . . . . Recyclers Shooed 1 | . . . 1 Parts Field Recycled . | . . . . Retrieved Matter . | . . . . Parts Self-Destructed . | . . . . Prevented . | . . . . Kills | -11 -10 -9 -8 ------- Run | Scr Mat Mat Mat Combat Hostiles Destroyed 30 | . 5 14 11 Guns 20 | . 3 12 5 Cannons 2 | . . 2 . AOE 8 | . 2 . 6 Classes Destroyed 6 | 1 3 1 1 Builder 5 | . . . 5 Tunneler 2 | 2 . . . Watcher 2 | . 1 1 . Swarmer 10 | . 3 3 4 Grunt 11 | . 2 4 5 Sentry 9 | . . 7 2 Best Kill Streak 9 | 2 3 3 9 Combat Bots Only 6 | . 3 3 6 Max Kills in Single Turn 2 | 1 2 1 2 Gunslinging . | . . . . Exploded 2 | . 2 . 2 Melee . | . . . . Uniques/NPCs Destroyed . | . . . . Combat | -11 -10 -9 -8 -------- Run | Scr Mat Mat Mat Damage Taken 2201 | . 139 1078 984 Core 287 | . 20 192 75 Absorbed by Shields . | . . . . Core Remaining (%) 81 | 100 92 52 . Volleys Fired 91 | 4 10 54 23 Largest 3 | 2 2 2 3 Hottest 96 | 60 60 80 96 Shots Fired 191 | 8 19 103 61 Gun 160 | 8 19 93 40 Cannon 10 | . . 10 . Launcher 21 | . . . 21 Special . | . . . . Kinetic 78 | 4 10 44 20 Thermal 85 | . 6 59 20 Explosive . | . . . . Electromagnetic 28 | 4 3 . 21 Robot Hit Streak 14 | 3 12 14 8 Robot Miss Streak 4 | 1 3 4 3 Penetration Max . | . . . . Secondary Targets 3 | . 1 2 . Max Gunslinging Chain 1 | . 1 1 . Shots Hit Robots 129 | 5 14 70 40 Core Hits 68 | 2 7 30 29 Critical Kills 1 | . . 1 . Critical Parts Destroyed . | . . . . Critical Strikes 1 | . . 1 . Destroy 1 | . . 1 . Melee Attacks . | . . . . Impact . | . . . . Slashing . | . . . . Piercing . | . . . . Sneak Attacks . | . . . . Combat Hostiles . | . . . . Follow-up Attacks . | . . . . Damage Inflicted 2263 | 59 206 855 1143 Guns 1266 | 59 140 692 375 Cannons 163 | . . 163 . Explosions 834 | . 66 . 768 Melee . | . . . . Ramming . | . . . . Kinetic 589 | 19 45 326 199 Thermal 1063 | . 131 529 403 Explosive . | . . . . Electromagnetic 611 | 40 30 . 541 Impact . | . . . . Slashing . | . . . . Piercing . | . . . . Highest Corruption 3 | . . . 3 Average Corruption 2 | . . . 2 Corruption Purged . | . . . . Corruption Blocked . | . . . . Overload Shots . | . . . . Overflow Damage 26 | . 15 . 11 Projectiles . | . . . . Explosions 26 | . 15 . 11 Melee . | . . . . Knockbacks . | . . . . Impact . | . . . . Kinetic . | . . . . Secondary . | . . . . Self-Inflicted Damage 352 | . 27 . 325 Shots 17 | . 1 . 16 Rammed . | . . . . Targets Rammed . | . . . . Kicked . | . . . . Crushed . | . . . . Highest Temperature 585 | 40 64 328 585 Average Temperature 121 | 20 23 98 199 Received Heat Transfer 765 | . 30 429 306 Effects 13 | . . 3 10 Shutdowns 3 | . . 1 2 Energy Bleed 5 | . . 1 4 Interference 2 | . . . 2 Matter Decay 1 | . . 1 . Short Circuit 1 | . . . 1 Damage (major) 1 | . . . 1 Siege Activations . | . . . . Robots Corrupted . | . . . . Combat Hostiles . | . . . . Parts Fried . | . . . . Impact Corruptions . | . . . . Robots Melted . | . . . . Combat Hostiles . | . . . . Parts Melted 3 | . 1 1 1 Heat Transferred 2059 | . 250 1109 700 Parts Sabotaged . | . . . . Parts Stolen . | . . . . Parts Stripped . | . . . . Power Chain Reactions 6 | . 1 . 5 Missiles Intercepted . | . . . . Alert | -11 -10 -9 -8 ------- Run | Scr Mat Mat Mat Peak Influence 341 | 10 156 341 341 Initial 80 | . 6 65 80 Average 158 | 2 110 194 147 Maximum Alert Level 1 | . . 1 1 Low Security (%) 60 | 100 100 37 75 Level 1 39 | . . 62 24 Level 2 . | . . . . Level 3 . | . . . . Level 4 . | . . . . Level 5 . | . . . . High Security . | . . . . Max Security . | . . . . Squads Dispatched 6 | . 2 1 3 Investigation 1 | . . . 1 Extermination . | . . . . Reinforcement 5 | . 2 1 2 Assault . | . . . . Garrison . | . . . . Intercept . | . . . . Searches Triggered . | . . . . Construction Impeded 1 | . . . 1 Haulers Reinforced . | . . . . Active Scanning Responses . | . . . . Cargo Convoy Interrupts . | . . . . Stealth | -11 -10 -9 -8 --------- Run | Scr Mat Mat Mat Distress Signals 5 | . 2 1 2 Communications Jammed . | . . . . Distress Signals . | . . . . Times Spotted 47 | . 9 22 16 Peak Tracking Total 7 | . 3 4 7 Tactical Retreats 3 | . 2 . 1 Traps | -11 -10 -9 -8 ------- Run | Scr Mat Mat Mat Traps Triggered 1 | . . . 1 Indirectly . | . . . . Trap Hack Attempts . | . . . . Triggered . | . . . . Disarmed . | . . . . Reprogrammed . | . . . . Reused . | . . . . Traps Extracted . | . . . . Installed . | . . . . Triggered . | . . . . Machines | -11 -10 -9 -8 ---------- Run | Scr Mat Mat Mat Machines Disabled 1 | . . . 1 Max in Single Turn 1 | . . . 1 Machines Sabotaged . | . . . . Garrisons Compromised . | . . . . Overloaded Fab Kills . | . . . . Hacking | -11 -10 -9 -8 --------- Run | Scr Mat Mat Mat Machines Accessed . | . . . . Terminals . | . . . . Fabricators . | . . . . Repair Stations . | . . . . Recycling Units . | . . . . Scanalyzers . | . . . . Garrison Access . | . . . . Total Hacks . | . . . . Successful . | . . . . Failed . | . . . . Catastrophic . | . . . . Database Lockouts . | . . . . Manual . | . . . . Terminals . | . . . . Fabricators . | . . . . Repair Stations . | . . . . Recycling Units . | . . . . Scanalyzers . | . . . . Garrison Access . | . . . . Terminal Hacks . | . . . . Fabricator Hacks . | . . . . Repair Station Hacks . | . . . . Recycling Unit Hacks . | . . . . Scanalyzer . | . . . . Garrison Access Hacks . | . . . . Unauthorized Hacks . | . . . . Terminals . | . . . . Fabricators . | . . . . Repair Stations . | . . . . Recycling Units . | . . . . Scanalyzers . | . . . . Garrison Access . | . . . . Data Cores Recovered . | . . . . Used . | . . . . Hacking Detections . | . . . . Full Trace Events . | . . . . Feedback Events . | . . . . Feedback Blocked . | . . . . Robot Schematics Acquired . | . . . . Robots Built . | . . . . Authchips . | . . . . Time . | . . . . Total Robot Build Rating . | . . . . Part Schematics Acquired . | . . . . Parts Built . | . . . . Authchips . | . . . . Time . | . . . . Total Part Build Rating . | . . . . Parts Repaired . | . . . . Time . | . . . . Parts Recycled . | . . . . Recycled Matter . | . . . . Retrieved Matter . | . . . . Retrieved Components . | . . . . Parts Scanalyzed . | . . . . Part Schematics Acquired . | . . . . Parts Damaged . | . . . . Bothacking | -11 -10 -9 -8 ------------ Run | Scr Mat Mat Mat Used RIF Installer . | . . . . Robots Hacked . | . . . . Non-combat . | . . . . Combat . | . . . . Robot Hacks Applied . | . . . . Relay Couplers Released . | . . . . Fabnet Peak Effective % . | . . . . Robots Rewired . | . . . . Allies Hacked . | . . . . Hacks Repelled . | . . . . Allies | -11 -10 -9 -8 -------- Run | Scr Mat Mat Mat Total Allies . | . . . . Largest Group . | . . . . Highest-Rated Group . | . . . . Highest-Rated Ally . | . . . . Total Orders . | . . . . Ally Attacks . | . . . . Total Damage . | . . . . Kills . | . . . . Allies Corrupted . | . . . . Allies Melted . | . . . . Intel | -11 -10 -9 -8 ------- Run | Scr Mat Mat Mat Robot Analysis Total . | . . . . Derelict Logs Recovered . | . . . . Drone Launches . | . . . . Drone Recoveries . | . . . . Exploration | -11 -10 -9 -8 ------------- Run | Scr Mat Mat Mat Turns Passed 1601 | 84 252 831 434 Spaces Moved 845 | 62 184 383 216 Core 2 | 2 . . . Treads 539 | . . 323 216 Legs 3 | . . 3 . Wheels 301 | 60 184 57 . Hover . | . . . . Flight . | . . . . Fastest Speed 50 | 50 100 100 160 Average Speed 139 | 98 100 152 160 Slowest Speed 240 | 100 100 240 160 Overloaded Moves . | . . . . Propulsion Burnouts . | . . . . Robots Hopped . | . . . . Cave-ins Triggered . | . . . . Exploration Rate (%) 26 | 5 34 40 25 Regions Visited 3 Branch Regions . Pre-discovered Areas . | . . . . Known Exits Taken 1 | . . 1 . Unknown Exits Taken 2 | 1 1 . . Scrap Searched . | . . . . Spaces Dug . | . . . . Terrain Destroyed 16 | . 1 1 14 Melee . | . . . . Projectile 1 | . . 1 . AOE 15 | . 1 . 14 Terrain Rammed . | . . . . Walls Destroyed . | . . . . Machines Disabled . | . . . . Actions | -11 -10 -9 -8 --------- Run | Scr Mat Mat Mat Total 1093 | 74 233 531 255 Wait 84 | . 24 54 6 Move 842 | 61 183 382 216 Hop . | . . . . Pick Up 25 | 2 6 13 4 Fast Attach 12 | 7 . 5 . Attach 12 | . 3 4 5 Detach 2 | . 2 . . Swap 16 | . 5 10 1 Drop 9 | . . 9 . Fire 91 | 4 10 54 23 Melee . | . . . . Ram . | . . . . Kick . | . . . . Crush . | . . . . Escape Stasis . | . . . . Rewire . | . . . . Trap . | . . . . Miscellaneous . | . . . . Route ------- -11/Scrapyard -10/Materials -9/Materials -8/Materials History --------- Turn | Location | Event 29 | -11/Scrapyard | Discovered new exit (range 15) 85 | -11/Scrapyard | Entered Materials 303 | -10/Materials | Build established: Mutant 319 | -10/Materials | Discovered new exit (range 16) 337 | -10/Materials | Entered another Materials area 337 | -9/Materials | Evolved 2 slots: Power x1, Propulsion x1 1151 | -9/Materials | Discovered new exit (range 11) 1166 | -9/Materials | Identified exit to Materials 1168 | -9/Materials | Entered another Materials area 1168 | -8/Materials | Evolved 2 slots: Utility x1, Weapon x1 1480 | -8/Materials | Build established: Tank 1602 | -8/Materials | Self-destructed Last Messages --------------- 01594_ U-05 Engineer lays Concrete. 01594_ Nuclear Core destroyed. 01595_ Overheating: System interference. 01595_ Hvy. Assault Rifle temporarily disabled. 01595_ Signal Interpreter temporarily disabled. 01595_ U-05 Engineer builds a Wall. 01595_ U-05 Engineer lays Concrete. 01595_ Destroyed Lgt. Nuclear Core. 01595_ G-47 Trooper destroyed. 01595_ U-05 Engineer destroyed. 01597_ EMP Blaster broken. 01597_ Overheating: Short circuit. 01598_ Overheating: Energy bleed (-40). 01598_ Imp. Treads destroyed. 01598_ Critical hit (Burn: +37). 01599_ Overheating: Energy bleed (-32). 01601_ Overheating: Hvy. Assault Rifle damaged (-9). 01601_ Hvy. Assault Rifle destroyed. 01602_ Power failure, Nuclear Core shutdown. 01602_ Broken EMP Blaster destroyed. Map ----- +----------------------------------------------------+ | | | | | | | | | | | | | | | | | | | | | | | | | | | | | | | | | | | | | | | | | | | | | ?????????????????????????###?????????????????##### | | ???????????????????????## ###????????????#### | | ???????????????????????# ############## ## ! | | ???????????????????????##@! !#= % | | ??????????????# ####|%%%= | !%= %+|! | | ??????????????# g![= %= #**[ | | ????????? =g* % #== | | ????????????### g a #### | | ??????????????# ##### | | ??????????????###+#?????# ######## | | ????????????????#???????# #??????? | | ????????????????????????# #??????? | | ????????????????????????# u #??????? | | ????????????????????????# #??????? | | ????????????????????????#######+## #??????? | | ?????????????????????????????????## #####??????? | | ??????????????????????????????????# #??????????? | | ??????????????????????????????????# #??????????? | | ??????????????????????????????????? ???????????? | | ?????????????????????????????????????????????????? | | ?????????????????????????????????????????????????? | | ?????????????????????????????????????????????????? | | ?????????????????????????????????????????????????? | | ?????????????????????????????????????????????????? | | ??????????????????????????????????????????????? ?? | | ?????????????????????????????????????????????? # | | ?????????????????????????????????????????????# | | ????????????????????????????????????????????? | +----------------------------------------------------+ Best States ------------- Heat Dissipation 31 Energy Generation 23 Energy Capacity 390 Matter Stores 300 Matter Capacity 300 Sight Range 16 Terrain Scan Range 16 Terrain Scan Density 10 Armor Coverage 150 Evasion (%) 40 Recoil Reduction 3 Item Schematics ----------------- None Robot Schematics ------------------ None Fabricated ------------ Nothing Alien Tech Used ----------------- None Achievements -------------- None Challenges ------------ None Game ------ Seed RiotDroneHammer Manual? 0 Play Time 00:18:05 Cumulative 30.8 hours Start 2022.05.27 @ 09:40:59 End 2022.05.27 @ 10:00:16 Sessions 1 Manual Loads 0 Difficulty Rogue Special Mode None Game No. 54 Rogue 39 Adventurer 0 Explorer 15 Win Type - Total 0 Types 0/0/0/0/0/0/0/0/0 Lore% 19 Gallery% 29 Achievement% 22 Wizard Run 0 Options --------- ASCII 0 Keyboard 0 Movement Vi Keybinds 0 Fullscreen 2 Font 24/Terminus Map View 76x50 Tactical HUD 1 Map Filters NONE Filters NONE Steam 1 RUN: 01283e8d-93e0-43b5-b5ba-7eb3876c93c0